fUST/lending_fUST_20240701
["ID","MTS","AMOUNT","RATE_DAILY","PERIOD"]
[330767604,1719763854690,-622.48,0.00016178,2]
[330767605,1719763854700,-800.87,0.00016178,2]
[330767606,1719763854709,-151.0,0.00016178,2]
[330767607,1719763854720,-500.0,0.00016178,2]
[330767608,1719763854730,-610.51,0.00016178,2]
[330767609,1719763854739,-554.93,0.00016178,2]
[330767610,1719763854751,-633.02,0.00016179,2]
[330767611,1719763854761,-500.0,0.00016179,2]
[330767612,1719763854770,-835.5,0.00016179,2]
[330767613,1719763854779,-151.0,0.00016179,2]
[330767614,1719763854788,-500.0,0.00016179,2]
[330767615,1719763854797,-189.0,0.00016179,2]
[330767616,1719763854807,-560.74,0.00016179,2]
[330767617,1719763854816,-500.0,0.00016179,2]
[330767618,1719763854826,-500.0,0.00016179,2]
[330767619,1719763854836,-1521.22,0.00016179,2]
[330767620,1719763854846,-980.95,0.00016179,2]
[330767621,1719763854855,-500.0,0.00016179,2]
[330767622,1719763854865,-500.0,0.00016179,2]
[330767623,1719763854874,-500.0,0.00016179,2]
[330767624,1719763854883,-500.0,0.00016179,2]
[330767625,1719763854893,-500.0,0.00016179,2]
[330767626,1719763854902,-500.0,0.00016179,2]
[330767627,1719763854912,-557.42,0.00016179,2]
[330767628,1719763854921,-500.0,0.00016179,2]
[330767629,1719763854931,-500.0,0.00016179,2]
[330767630,1719763854940,-500.0,0.00016179,2]
[330767631,1719763854950,-500.0,0.00016179,2]
[330767632,1719763854959,-500.0,0.00016179,2]
[330767633,1719763854968,-500.0,0.00016179,2]
[330767634,1719763854978,-500.0,0.00016179,2]
[330767635,1719763854987,-154.38954278,0.00016179,2]
[330767636,1719763854997,-1325.0,0.00016179,2]
[330767637,1719763855006,-500.0,0.00016179,2]
[330767638,1719763855016,-500.0,0.00016179,2]
[330767639,1719763855025,-500.0,0.00016179,2]
[330767640,1719763855035,-725.25,0.00016179,2]
[330767641,1719763855044,-500.0,0.00016179,2]
[330767642,1719763855053,-500.0,0.00016179,2]
[330767643,1719763855063,-535.62143049,0.00016179,2]
[330767644,1719763855072,-250.2275,0.00016179,2]
[330767645,1719763855081,-250.2275,0.00016179,2]
[330767646,1719763855092,-500.0,0.00016179,2]
[330767647,1719763855101,-800.51,0.00016179,2]
[330767648,1719763855111,-564.15963743,0.00016179,2]
[330767649,1719763855121,-500.0,0.00016179,2]
[330767650,1719763855130,-500.0,0.00016179,2]
[330767651,1719763855139,-587.07,0.00016179,2]
[330767652,1719763855149,-1626.09,0.00016179,2]
[330767653,1719763855158,-500.0,0.00016179,2]
[330767654,1719763855167,-526.14,0.00016179,2]
[330767655,1719763855177,-500.0,0.00016179,2]
[330767656,1719763855187,-500.0,0.00016179,2]
[330767657,1719763855196,-500.0,0.00016179,2]
[330767658,1719763855206,-500.0,0.00016179,2]
[330767659,1719763855216,-538.94,0.00016179,2]
[330767660,1719763855226,-500.0,0.00016179,2]
[330767661,1719763855235,-500.0,0.00016179,2]
[330767662,1719763855245,-500.0,0.00016179,2]
[330767663,1719763855254,-772.79,0.00016179,2]
[330767664,1719763855264,-500.0,0.00016179,2]
[330767665,1719763855273,-151.0,0.00016179,2]
[330767666,1719763855283,-500.0,0.00016179,2]
[330767667,1719763855292,-622.35,0.00016179,2]
[330767668,1719763855303,-587.0,0.00016179,2]
[330767669,1719763855313,-674.57,0.00016179,2]
[330767670,1719763855322,-500.0,0.00016179,2]
[330767671,1719763855331,-500.0,0.00016179,2]
[330767672,1719763855342,-500.0,0.00016179,2]
[330767673,1719763855351,-500.0,0.00016179,2]
[330767674,1719763855360,-500.0,0.00016179,2]
[330767675,1719763855370,-500.0,0.00016179,2]
[330767676,1719763855379,-500.0,0.00016179,2]
[330767677,1719763855389,-500.0,0.00016179,2]
[330767678,1719763855399,-500.0,0.00016179,2]
[330767679,1719763855409,-862.82,0.00016179,2]
[330767680,1719763855418,-500.0,0.00016179,2]
[330767681,1719763855427,-500.0,0.00016179,2]
[330767682,1719763855437,-151.0,0.00016179,2]
[330767683,1719763855446,-151.0,0.00016179,2]
[330767684,1719763855456,-500.0,0.00016179,2]
[330767685,1719763855466,-500.0,0.00016179,2]
[330767686,1719763855476,-1277.19,0.00016179,2]
[330767687,1719763855486,-500.0,0.00016179,2]
[330767688,1719763855495,-500.0,0.00016179,2]
[330767689,1719763855505,-615.46,0.00016179,2]
[330767690,1719763855514,-502.05908549,0.00016179,2]
[330767691,1719763855523,-500.0,0.00016179,2]
[330767692,1719763855533,-500.0,0.00016179,2]
[330767693,1719763855542,-500.0,0.00016179,2]
[330767694,1719763855552,-500.0,0.00016179,2]
[330767695,1719763855561,-962.72,0.00016179,2]
[330767696,1719763855571,-1682.43,0.00016179,2]
[330767697,1719763855580,-510.876369,0.00016179,2]
[330767698,1719763855591,-500.0,0.00016179,2]
[330767699,1719763855600,-151.0,0.00016179,2]
[330767700,1719763855609,-1110.330723,0.00016179,2]
[330767701,1719763855619,-1110.330723,0.00016179,2]
[330767702,1719763855628,-325.056556,0.00016179,2]
[330767703,1719763855638,-325.056556,0.00016179,2]
[330767704,1719763855647,-167.275018,0.00016179,2]
[330767705,1719763855656,-1305.287559,0.00016179,2]
[330767706,1719763855666,-151.0,0.00016179,2]
[330767707,1719763855679,-1305.287559,0.00016179,2]
[330767708,1719763855689,-151.0,0.00016179,2]
[330767709,1719763855699,-151.0,0.00016179,2]
[330767710,1719763855709,-8009.752223,0.00016179,2]
[330767711,1719763855720,-8009.752223,0.00016179,2]
[330767712,1719763855730,-661.074698,0.00016179,2]
[330767713,1719763855740,-661.074698,0.00016179,2]
[330767714,1719763855752,-1064.822849,0.00016179,2]
[330767715,1719763855761,-1064.822849,0.00016179,2]
[330767716,1719763855771,-2375.539887,0.00016179,2]
[330767717,1719763855780,-3089.708779,0.00016179,2]
[330767718,1719763855790,-2375.539887,0.00016179,2]
[330767719,1719763855799,-3089.708779,0.00016179,2]
[330767720,1719763855808,-151.0,0.00016179,2]
[330767721,1719763855818,-151.0,0.00016179,2]
[330767722,1719763855828,-500.0,0.0001618,2]
[330767723,1719763855838,-500.0,0.0001618,2]
[330767724,1719763855847,-645.19,0.0001618,2]
[330767725,1719763855856,-151.0,0.0001618,2]
[330767726,1719763855866,-221.229111,0.0001618,2]
[330767727,1719763855964,-221.229111,0.0001618,2]
[330767728,1719763855974,-1240.182729,0.0001618,2]
[330767729,1719763855984,-1793.849627,0.0001618,2]
[330767730,1719763855994,-1240.182729,0.0001618,2]
[330767731,1719763856004,-1793.849627,0.0001618,2]
[330767732,1719763856013,-151.0,0.00016181,2]
[330767733,1719763856025,-500.0,0.00016181,2]
[330767734,1719763856035,-151.0,0.00016181,2]
[330767735,1719763856046,-198.899793,0.00016181,2]
[330767736,1719763856056,-198.899793,0.00016181,2]
[330767737,1719763856065,-23458.26,0.00016181,2]
[330767738,1719763856074,-747.95,0.00016181,2]
[330767739,1719763856085,-151.0,0.00016182,2]
[330767740,1719763856095,-151.0,0.00016182,2]
[330767741,1719763856105,-774.6,0.00016182,2]
[330767742,1719763856118,-151.0,0.00016182,2]
[330767743,1719763856128,-968.537188,0.00016182,2]
[330767744,1719763856139,-968.537188,0.00016182,2]
[330767745,1719763856150,-713.89,0.00016182,2]
[330767746,1719763856159,-1112.214159,0.00016182,2]
[330767747,1719763856168,-1112.214159,0.00016182,2]
[330767748,1719763856178,-3036.38,0.00016182,2]
[330767749,1719763856187,-11624.58,0.00016182,2]
[330767750,1719763856197,-1840.67,0.00016182,2]
[330767751,1719763856207,-2504.72,0.00016182,2]
[330767752,1719763856217,-20545.62,0.00016182,2]
[330767753,1719763856228,-1950.68,0.00016182,2]
[330767754,1719763856238,-500.0,0.00016182,2]
[330767755,1719763856247,-250.2275,0.00016183,2]
[330767756,1719763856258,-250.2275,0.00016183,2]
[330767757,1719763856267,-151.0,0.00016183,2]
[330767758,1719763856276,-1110.330723,0.00016183,2]
[330767759,1719763856285,-1110.330723,0.00016183,2]
[330767760,1719763856294,-325.056556,0.00016183,2]
[330767761,1719763856303,-325.056556,0.00016183,2]
[330767762,1719763856313,-1305.287559,0.00016183,2]
[330767763,1719763856322,-151.0,0.00016183,2]
[330767764,1719763856332,-1305.287559,0.00016183,2]
[330767765,1719763856344,-259.376533,0.00016183,2]
[330767766,1719763856353,-151.0,0.00016183,2]
[330767767,1719763856362,-8009.752223,0.00016183,2]
[330767768,1719763856371,-8009.752223,0.00016183,2]
[330767769,1719763856380,-661.074698,0.00016183,2]
[330767770,1719763856390,-661.074698,0.00016183,2]
[330767771,1719763856400,-1064.822849,0.00016183,2]
[330767772,1719763856409,-1064.822849,0.00016183,2]
[330767773,1719763856419,-2375.539887,0.00016183,2]
[330767774,1719763856429,-3089.708779,0.00016183,2]
[330767775,1719763856438,-2375.539887,0.00016183,2]
[330767776,1719763856448,-3089.708779,0.00016183,2]
[330767777,1719763856457,-151.0,0.00016183,2]
[330767778,1719763856466,-267.882435,0.00016186,2]
[330767779,1719763856476,-2778.938883,0.00016205,2]
[330767780,1719763856487,-2105.857087,0.00016205,2]
[330767781,1719763856497,-164.609037,0.00016205,2]
[330767782,1719763856507,-372.743123,0.00016205,2]
[330767783,1719763856518,-248.495415,0.00016205,2]
[330767784,1719763856526,-293.988621,0.00016205,2]
[330767785,1719763856536,-203.30163,0.00016205,2]
[330767786,1719763856545,-151.0,0.00016205,2]
[330767787,1719763856555,-230.026722,0.00016205,2]
[330767788,1719763856565,-56136.00851448,0.00016254,2]
[330767789,1719763856591,-6583.56310856,0.00016254,2]
[330767790,1719763856602,-599.33107909,0.00016254,2]
[330767791,1719763856613,-3924.40510311,0.00016254,2]
[330767792,1719763856628,-855.0,0.00016254,2]
[330767793,1719763856775,-1376.19941108,0.00016254,2]
[330767794,1719763856891,-4157.50000001,0.00016254,2]
[330767795,1719763856907,-26367.99278367,0.00016254,2]
[330767796,1719763856916,-151.0,0.00016254,2]
[330767797,1719763856926,-250.2275,0.00016254,2]
[330767798,1719763856935,-250.2275,0.00016254,2]
[330767799,1719763856944,-151.0,0.00016254,2]
[330767800,1719763856953,-151.0,0.00016254,2]
[330767801,1719763856962,-252.155402,0.00016254,2]
[330767802,1719763856972,-968.537188,0.00016254,2]
[330767803,1719763856981,-968.537188,0.00016254,2]
[330767804,1719763856992,-221.229111,0.00016254,2]
[330767805,1719763857002,-221.229111,0.00016254,2]
[330767806,1719763857011,-1112.214159,0.00016254,2]
[330767807,1719763857021,-1112.214159,0.00016254,2]
[330767808,1719763857031,-1240.182729,0.00016254,2]
[330767809,1719763857040,-1793.849627,0.00016254,2]
[330767810,1719763857049,-1240.182729,0.00016254,2]
[330767811,1719763857058,-1793.849627,0.00016254,2]
[330767812,1719763857068,-151.0,0.00016254,2]
[330767813,1719763857077,-198.899793,0.00016254,2]
[330767814,1719763857087,-198.899793,0.00016254,2]
[330767815,1719763857096,-158.857971,0.00016254,2]
[330767816,1719763857105,-42175.40753023,0.00016255,2]
[330767817,1719763857114,-8849.73310988,0.00016255,2]
[330767818,1719763857123,-154.99577588,0.00016255,2]
[330767819,1719763857133,-17241.85053886,0.00016255,2]
[330767820,1719763857142,-151.0,0.00016255,2]
[330767821,1719763857151,-151.0,0.00016255,2]
[330767822,1719763857159,-1110.330723,0.00016255,2]
[330767823,1719763857169,-1110.33073,0.00016255,2]
[330767824,1719763857178,-325.056556,0.00016255,2]
[330767825,1719763857187,-325.056556,0.00016255,2]
[330767826,1719763857197,-1305.287559,0.00016255,2]
[330767827,1719763857206,-151.0,0.00016255,2]
[330767828,1719763857215,-1305.287553,0.00016255,2]
[330767829,1719763857225,-225.642595,0.00016255,2]
[330767830,1719763857234,-8009.752223,0.00016255,2]
[330767831,1719763857243,-8009.752229,0.00016255,2]
[330767832,1719763857252,-661.074698,0.00016255,2]
[330767833,1719763857262,-661.074698,0.00016255,2]
[330767834,1719763857272,-1064.822849,0.00016255,2]
[330767835,1719763857281,-1064.822847,0.00016255,2]
[330767836,1719763857293,-2375.539887,0.00016255,2]
[330767837,1719763857304,-3089.708779,0.00016255,2]
[330767838,1719763857314,-2375.53989397,0.00016255,2]
[330767839,1719763857324,-3089.708778,0.00016255,2]
[330767840,1719763857334,-160.675798,0.00016255,2]
[330767841,1719763857344,-499.14713183,0.00016255,2]
[330767842,1719763857354,-156.774861,0.00016405,2]
[330767843,1719763857445,-2778.938883,0.00016405,2]
[330767844,1719763857456,-2105.857087,0.00016405,2]
[330767845,1719763857465,-164.609037,0.00016405,2]
[330767846,1719763857476,-372.743123,0.00016405,2]
[330767847,1719763857486,-293.988621,0.00016405,2]
[330767848,1719763857496,-248.495415,0.00016405,2]
[330767849,1719763857507,-203.30163,0.00016405,2]
[330767850,1719763857517,-150.0,0.00016417,2]
[330767851,1719763857526,-150.0,0.00016417,2]
[330767852,1719763857535,-52911.86076263,0.00016436,2]
[330767853,1719763857544,-250.2275,0.00016436,2]
[330767854,1719763857554,-250.2275,0.00016436,2]
[330767855,1719763857564,-151.0,0.00016436,2]
[330767856,1719763857573,-151.0,0.00016436,2]
[330767857,1719763857583,-968.537188,0.00016436,2]
[330767858,1719763857594,-968.537188,0.00016436,2]
[330767859,1719763857603,-221.229111,0.00016436,2]
[330767860,1719763857612,-221.229111,0.00016436,2]
[330767861,1719763857623,-1112.214159,0.00016436,2]
[330767862,1719763857633,-1112.214159,0.00016436,2]
[330767863,1719763857644,-1240.182729,0.00016436,2]
[330767864,1719763857654,-1793.849627,0.00016436,2]
[330767865,1719763857663,-1240.182729,0.00016436,2]
[330767866,1719763857674,-1793.849627,0.00016436,2]
[330767867,1719763857685,-151.0,0.00016436,2]
[330767868,1719763857694,-198.899793,0.00016436,2]
[330767869,1719763857703,-198.899794,0.00016436,2]
[330767870,1719763857713,-939.3,0.00016438,2]
[330767871,1719763857724,-277.5,0.00016438,2]
[330767872,1719763857735,-1000.0,0.00016438,2]
[330767873,1719763857746,-1000.0,0.00016438,2]
[330767874,1719763857759,-1000.0,0.00016438,2]
[330767875,1719763857769,-1000.0,0.00016438,2]
[330767876,1719763857779,-1000.0,0.00016438,2]
[330767877,1719763857789,-1000.0,0.00016438,2]
[330767878,1719763857799,-1000.0,0.00016438,2]
[330767879,1719763857811,-1000.0,0.00016438,2]
[330767880,1719763857820,-1000.0,0.00016438,2]
[330767881,1719763857832,-1000.0,0.00016438,2]
[330767882,1719763857842,-1000.0,0.00016438,2]
[330767883,1719763857851,-1000.0,0.00016438,2]
[330767884,1719763857860,-1000.0,0.00016438,2]
[330767885,1719763857869,-1000.0,0.00016438,2]
[330767886,1719763857879,-1000.0,0.00016438,2]
[330767887,1719763857889,-1000.0,0.00016438,2]
[330767888,1719763857900,-1000.0,0.00016438,2]
[330767889,1719763857909,-1000.0,0.00016438,2]
[330767890,1719763857921,-1000.0,0.00016438,2]
[330767891,1719763857931,-1000.0,0.00016438,2]
[330767892,1719763857940,-1000.0,0.00016438,2]
[330767893,1719763857950,-1000.0,0.00016438,2]
[330767894,1719763857959,-1000.0,0.00016438,2]
[330767895,1719763857969,-1000.0,0.00016438,2]
[330767896,1719763857978,-310.428173,0.00016438,2]
[330767897,1719763857987,-153.0,0.00016438,2]
[330767898,1719763857996,-206.0005558,0.00016438,2]
[330767899,1719763858007,-206.0005558,0.00016438,2]
[330767900,1719763858019,-206.0005558,0.00016438,2]
[330767901,1719763858031,-500.0,0.00016463,2]
[330767902,1719763858041,-500.0,0.000165,2]
[330767903,1719763858050,-277.09747663,0.000165,2]
[330767904,1719763858059,-156.774864,0.00016517,2]
[330767905,1719763858068,-820.539528,0.00016517,2]
[330767906,1719763858078,-155.0,0.0001658,2]
[330767907,1719763858087,-420.0,0.00016585,2]
[330767908,1719763858096,-2778.938883,0.00016605,2]
[330767909,1719763858106,-2105.857087,0.00016605,2]
[330767910,1719763858115,-164.609037,0.00016605,2]
[330767911,1719763858124,-372.743123,0.00016605,2]
[330767912,1719763858133,-293.988621,0.00016605,2]
[330767913,1719763858142,-248.495415,0.00016605,2]
[330767914,1719763858151,-203.30163,0.00016605,2]
[330767915,1719763858161,-151.0,0.00016605,2]
[330767916,1719763858170,-621.4279764,0.00016608,2]
[330767917,1719763858180,-939.3,0.00016712,2]
[330767918,1719763858189,-277.5,0.00016712,2]
[330767919,1719763858199,-3778.42,0.00016722,2]
[330767920,1719763858208,-500.0,0.00016722,2]
[330767921,1719763858218,-1073.3,0.00016722,2]
[330767922,1719763858230,-2960.19,0.00016722,2]
[330767923,1719763858241,-500.0,0.00016722,2]
[330767924,1719763858251,-25512.51,0.00016722,2]
[330767925,1719763858260,-3696.34,0.00016722,2]
[330767926,1719763858270,-6536.37,0.00016722,2]
[330767927,1719763858279,-500.0,0.00016722,2]
[330767928,1719763858290,-1580.4,0.00016723,2]
[330767929,1719763858300,-2853.89,0.00016723,2]
[330767930,1719763858310,-581.34,0.00016723,2]
[330767931,1719763858319,-1277.45,0.00016723,2]
[330767932,1719763858328,-552.84,0.00016723,2]
[330767933,1719763858338,-24705.97,0.00016723,2]
[330767934,1719763858348,-4879.61,0.00016723,2]
[330767935,1719763858357,-7276.57,0.00016723,2]
[330767936,1719763858367,-3894.25,0.00016723,2]
[330767937,1719763858377,-1061.5,0.00016723,2]
[330767938,1719763858386,-751.42,0.00016723,2]
[330767939,1719763858396,-686.04,0.00016723,2]
[330767940,1719763858405,-9554.37,0.00016723,2]
[330767941,1719763858414,-11591.3,0.00016723,2]
[330767942,1719763858423,-500.0,0.00016723,2]
[330767943,1719763858435,-914.63,0.00016723,2]
[330767944,1719763858445,-3583.99,0.00016723,2]
[330767945,1719763858456,-1204.15,0.00016723,2]
[330767946,1719763858466,-784.84,0.00016723,2]
[330767947,1719763858475,-820.539528,0.00016723,2]
[330767948,1719763858485,-500.0,0.00016724,2]
[330767949,1719763858494,-500.0,0.00016724,2]
[330767950,1719763858503,-597.16,0.00016724,2]
[330767951,1719763858513,-500.00150982,0.00016724,2]
[330767952,1719763858523,-2719.84,0.00016724,2]
[330767953,1719763858533,-500.0,0.00016724,2]
[330767954,1719763858543,-500.0,0.00016724,2]
[330767955,1719763858553,-500.0,0.00016724,2]
[330767956,1719763858564,-500.0,0.00016724,2]
[330767957,1719763858574,-555.1,0.00016724,2]
[330767958,1719763858585,-500.0,0.00016724,2]
[330767959,1719763858595,-500.0,0.00016724,2]
[330767960,1719763858604,-792.47,0.00016724,2]
[330767961,1719763858614,-3424.47,0.00016724,2]
[330767962,1719763858623,-685.71,0.00016724,2]
[330767963,1719763858632,-619.1,0.00016724,2]
[330767964,1719763858642,-500.0,0.00016724,2]
[330767965,1719763858651,-710.79,0.00016724,2]
[330767966,1719763858661,-509.14,0.00016724,2]
[330767967,1719763858672,-500.0,0.00016724,2]
[330767968,1719763858685,-642.45,0.00016724,2]
[330767969,1719763858694,-500.0,0.00016724,2]
[330767970,1719763858704,-500.0,0.00016724,2]
[330767971,1719763858715,-3064.44,0.00016724,2]
[330767972,1719763858724,-500.0,0.00016724,2]
[330767973,1719763858735,-3614.49,0.00016724,2]
[330767974,1719763858744,-1171.04,0.00016724,2]
[330767975,1719763858829,-500.0,0.00016724,2]
[330767976,1719763858839,-151.0,0.00016724,2]
[330767977,1719763858848,-500.0,0.00016724,2]
[330767978,1719763858857,-911.96,0.00016724,2]
[330767979,1719763858867,-500.0,0.00016724,2]
[330767980,1719763858875,-500.0,0.00016724,2]
[330767981,1719763858885,-1135.85,0.00016724,2]
[330767982,1719763858894,-546.74,0.00016724,2]
[330767983,1719763858903,-1506.78,0.00016724,2]
[330767984,1719763858912,-751.6,0.00016724,2]
[330767985,1719763858922,-500.0,0.00016724,2]
[330767986,1719763858931,-500.0,0.00016724,2]
[330767987,1719763858940,-500.0,0.00016724,2]
[330767988,1719763858950,-500.0,0.00016724,2]
[330767989,1719763858959,-500.0,0.00016724,2]
[330767990,1719763858968,-500.0,0.00016724,2]
[330767991,1719763858978,-1830.63,0.00016724,2]
[330767992,1719763858987,-1346.09,0.00016724,2]
[330767993,1719763858996,-968.537188,0.00016724,2]
[330767994,1719763859005,-968.537188,0.00016724,2]
[330767995,1719763859015,-500.0,0.00016724,2]
[330767996,1719763859025,-500.0,0.00016724,2]
[330767997,1719763859034,-500.0,0.00016724,2]
[330767998,1719763859043,-1027.12,0.00016724,2]
[330767999,1719763859052,-500.0,0.00016724,2]
[330768000,1719763859061,-962.0,0.00016724,2]
[330768001,1719763859071,-793.71,0.00016724,2]
[330768002,1719763859080,-663.33,0.00016724,2]
[330768003,1719763859090,-1263.87,0.00016724,2]
[330768004,1719763859099,-685.35,0.00016724,2]
[330768005,1719763859109,-1013.79,0.00016724,2]
[330768006,1719763859118,-500.0,0.00016724,2]
[330768007,1719763859127,-221.229111,0.00016724,2]
[330768008,1719763859136,-500.0,0.00016724,2]
[330768009,1719763859146,-701.86,0.00016724,2]
[330768010,1719763859157,-221.229111,0.00016724,2]
[330768011,1719763859167,-551.38,0.00016724,2]
[330768012,1719763859176,-1112.214159,0.00016724,2]
[330768013,1719763859186,-872.13,0.00016724,2]
[330768014,1719763859196,-1112.214167,0.00016724,2]
[330768015,1719763859205,-500.0,0.00016724,2]
[330768016,1719763859215,-500.0,0.00016724,2]
[330768017,1719763859225,-500.0,0.00016724,2]
[330768018,1719763859236,-1240.182729,0.00016724,2]
[330768019,1719763859247,-1793.849627,0.00016724,2]
[330768020,1719763859255,-500.0,0.00016724,2]
[330768021,1719763859265,-1240.182729,0.00016724,2]
[330768022,1719763859275,-1793.84962,0.00016724,2]
[330768023,1719763859284,-500.0,0.00016724,2]
[330768024,1719763859293,-555.59,0.00016724,2]
[330768025,1719763859302,-711.91,0.00016724,2]
[330768026,1719763859311,-1022.94,0.00016724,2]
[330768027,1719763859321,-500.0,0.00016724,2]
[330768028,1719763859330,-1667.88,0.00016724,2]
[330768029,1719763859340,-500.0,0.00016724,2]
[330768030,1719763859349,-537.16,0.00016724,2]
[330768031,1719763859359,-3445.37,0.00016724,2]
[330768032,1719763859371,-500.0,0.00016724,2]
[330768033,1719763859380,-500.0,0.00016724,2]
[330768034,1719763859389,-16350.28,0.00016724,2]
[330768035,1719763859399,-500.0,0.00016724,2]
[330768036,1719763859409,-500.0,0.00016724,2]
[330768037,1719763859419,-1190.7,0.00016724,2]
[330768038,1719763859429,-500.0,0.00016724,2]
[330768039,1719763859438,-500.0,0.00016724,2]
[330768040,1719763859448,-651.93,0.00016724,2]
[330768041,1719763859457,-5595.53,0.00016724,2]
[330768042,1719763859466,-1180.5,0.00016724,2]
[330768043,1719763859477,-500.0,0.00016724,2]
[330768044,1719763859486,-2338.66,0.00016724,2]
[330768045,1719763859495,-838.23,0.00016724,2]
[330768046,1719763859505,-500.0,0.00016724,2]
[330768047,1719763859515,-1048.69,0.00016724,2]
[330768048,1719763859524,-633.0,0.00016724,2]
[330768049,1719763859534,-500.0,0.00016724,2]
[330768050,1719763859544,-1173.82,0.00016724,2]
[330768051,1719763859554,-500.0,0.00016724,2]
[330768052,1719763859563,-647.25,0.00016724,2]
[330768053,1719763859573,-560.18,0.00016724,2]
[330768054,1719763859582,-500.0,0.00016724,2]
[330768055,1719763859594,-500.0,0.00016724,2]
[330768056,1719763859604,-500.0,0.00016724,2]
[330768057,1719763859613,-1126.26,0.00016724,2]
[330768058,1719763859622,-500.0,0.00016724,2]
[330768059,1719763859631,-500.0,0.00016724,2]
[330768060,1719763859641,-683.48,0.00016724,2]
[330768061,1719763859651,-2073.23,0.00016724,2]
[330768062,1719763859661,-1122.76,0.00016724,2]
[330768063,1719763859671,-500.0,0.00016724,2]
[330768064,1719763859684,-1385.73,0.00016724,2]
[330768065,1719763859694,-625.34,0.00016724,2]
[330768066,1719763859704,-2392.53,0.00016724,2]
[330768067,1719763859715,-784.31,0.00016724,2]
[330768068,1719763859724,-1347.47,0.00016724,2]
[330768069,1719763859734,-500.0,0.00016724,2]
[330768070,1719763859743,-690.51,0.00016724,2]
[330768071,1719763859756,-500.0,0.00016724,2]
[330768072,1719763859766,-500.0,0.00016724,2]
[330768073,1719763859775,-602.01,0.00016724,2]
[330768074,1719763859786,-819.83,0.00016724,2]
[330768075,1719763859796,-500.0,0.00016724,2]
[330768076,1719763859805,-2717.6,0.00016724,2]
[330768077,1719763859815,-500.0,0.00016724,2]
[330768078,1719763859824,-500.0,0.00016724,2]
[330768079,1719763859834,-500.0,0.00016724,2]
[330768080,1719763859844,-759.22,0.00016724,2]
[330768081,1719763859854,-500.0,0.00016724,2]
[330768082,1719763859864,-500.0,0.00016724,2]
[330768083,1719763859874,-500.0,0.00016724,2]
[330768084,1719763859883,-500.0,0.00016724,2]
[330768085,1719763859893,-500.0,0.00016724,2]
[330768086,1719763859902,-250.2275,0.00016725,2]
[330768087,1719763859912,-250.2275,0.00016725,2]
[330768088,1719763859921,-280.813747,0.00016725,2]
[330768089,1719763859930,-1562.5,0.00016725,2]
[330768090,1719763859939,-754.69,0.00016725,2]
[330768091,1719763859948,-151.0,0.00016725,2]
[330768092,1719763859958,-19041.74,0.00016725,2]
[330768093,1719763859967,-601.41515309,0.00016725,2]
[330768094,1719763859977,-1488.78,0.00016725,2]
[330768095,1719763859987,-3478.08,0.00016725,2]
[330768096,1719763860070,-500.0,0.00016725,2]
[330768097,1719763860080,-500.0,0.00016725,2]
[330768098,1719763860091,-1914.77,0.00016725,2]
[330768099,1719763860100,-500.0,0.00016725,2]
[330768100,1719763860109,-1402.32,0.00016725,2]
[330768101,1719763860119,-2404.95,0.00016725,2]
[330768102,1719763860128,-520.02,0.00016726,2]
[330768103,1719763860138,-500.0,0.00016726,2]